bitfinex-derivatives/quotes_BTCF0:USTF0_20241130
["timestamp","ask_amount","ask_price","bid_price","bid_amount"]
[1732930370526,0.05167,96733.0,96710.0,0.412482]
[1732930370725,0.4872,96739.0,96716.0,7.34e-05]
[1732930370726,0.051678,96718.0,96716.0,7.34e-05]
[1732930371712,0.178076,96722.0,96716.0,0.0517524]
[1732930371856,0.178076,96722.0,96716.0,7.34e-05]
[1732930372063,0.1264,96722.0,96716.0,7.34e-05]
[1732930372354,0.051678,96718.0,96716.0,7.34e-05]
[1732930372542,0.051678,96718.0,96716.0,0.0060734]
[1732930373048,0.052678,96718.0,96716.0,0.0150734]
[1732930373644,0.051678,96718.0,96716.0,0.0150734]
[1732930373859,0.052678,96718.0,96716.0,0.0150734]
[1732930374060,0.052678,96718.0,96716.0,0.0607524]
[1732930374261,0.001,96718.0,96717.0,0.00389591]
[1732930375848,0.001,96718.0,96717.0,0.00889591]
[1732930376444,0.12644,96730.0,96717.0,0.00889591]
[1732930376660,0.05167,96733.0,96732.0,0.05167]
[1732930376971,0.12644,96738.0,96717.0,0.014]
[1732930377137,0.3608,96731.0,96723.0,0.051675]
[1732930377336,0.051674,96725.0,96723.0,0.051675]
[1732930377736,0.051674,96725.0,96724.0,0.0039176]
[1732930379057,0.051674,96725.0,96706.0,0.3608]
[1732930379058,0.051678,96718.0,96706.0,0.3608]
[1732930379236,0.051678,96718.0,96717.0,0.01291284]
[1732930379422,0.051678,96718.0,96717.0,0.009]
[1732930379739,0.051678,96718.0,96709.0,0.12648]
[1732930379740,0.051678,96718.0,96716.0,0.0517524]
[1732930380235,0.051676,96722.0,96721.0,0.051676]
[1732930381040,0.051678,96718.0,96716.0,0.0060734]
[1732930381228,0.051678,96718.0,96716.0,0.0150734]
[1732930381229,0.052678,96718.0,96716.0,0.0150734]
[1732930381732,0.052678,96718.0,96716.0,0.0090734]
[1732930382036,0.052678,96718.0,96717.0,0.051679]
[1732930382829,0.001,96718.0,96717.0,0.051679]
[1732930383336,0.001,96722.0,96721.0,0.008]
[1732930383534,0.051675,96723.0,96722.0,0.051676]
[1732930383741,0.3608,96731.0,96721.0,0.008]
[1732930383934,0.3608,96731.0,96717.0,0.051679]
[1732930383935,0.051673,96728.0,96727.0,0.051672]
[1732930384130,0.48728,96731.0,96730.0,0.051672]
[1732930384131,0.36148,96731.0,96730.0,0.051672]
[1732930384330,0.00155094,96745.0,96722.0,0.3608]
[1732930384531,0.00155094,96745.0,96735.0,0.3608]
[1732930384735,0.05321494,96745.0,96744.0,0.051664]
[1732930385135,0.00155094,96745.0,96744.0,0.412464]
[1732930385351,0.00155094,96745.0,96744.0,0.41640131]
[1732930386440,0.051659,96754.0,96753.0,0.051658]
[1732930387340,0.051659,96754.0,96753.0,0.05561103]
[1732930387696,0.052659,96754.0,96753.0,0.05561103]
[1732930387833,0.056659,96754.0,96753.0,0.05561103]
[1732930388139,0.005,96754.0,96753.0,0.05561103]
[1732930388338,0.051659,96754.0,96753.0,0.05561103]
[1732930388635,0.057659,96754.0,96753.0,0.05561103]
[1732930388837,0.006,96754.0,96753.0,0.05561103]
[1732930389338,0.006,96754.0,96753.0,0.06193731]
[1732930389840,0.006,96754.0,96753.0,0.43063907]
[1732930390266,0.004,96754.0,96753.0,0.43063907]
[1732930391639,0.003,96754.0,96753.0,0.43063907]
[1732930392751,0.054659,96754.0,96753.0,0.43063907]
[1732930392956,0.054659,96754.0,96753.0,0.06174897]
[1732930393154,0.054659,96754.0,96753.0,0.01009097]
[1732930393358,0.054659,96754.0,96753.0,0.00388065]
[1732930393989,0.054659,96754.0,96753.0,0.05553965]
[1732930394461,0.054659,96754.0,96753.0,0.06178448]
[1732930395472,0.054659,96754.0,96753.0,0.051659]
[1732930396465,0.054659,96754.0,96753.0,0.05557195]
[1732930397268,0.003,96754.0,96753.0,0.05557195]
[1732930399653,0.003,96754.0,96753.0,0.06198286]
[1732930400333,0.003,96754.0,96753.0,0.051659]
[1732930400463,0.003,96754.0,96753.0,0.06207523]
[1732930401369,0.003,96754.0,96753.0,0.051659]
[1732930401941,0.003,96754.0,96753.0,0.05563702]
[1732930403342,0.003,96754.0,96753.0,0.06996645]
[1732930403941,0.003,96754.0,96753.0,0.07423767]
[1732930404143,0.003,96754.0,96753.0,0.051659]
[1732930404343,0.003,96754.0,96753.0,0.07026071]
[1732930404550,0.003,96754.0,96753.0,0.06996773]
[1732930406443,0.003,96754.0,96753.0,0.43076773]
[1732930406643,0.003,96754.0,96753.0,0.44285717]
[1732930407442,0.003,96754.0,96753.0,0.42852328]
[1732930407670,0.00013412,96762.0,96753.0,0.39117834]
[1732930407850,0.00013412,96762.0,96761.0,0.412455]
[1732930408042,0.00013412,96762.0,96761.0,0.4307439]
[1732930408951,0.00613412,96762.0,96761.0,0.4307439]
[1732930409141,0.00713412,96762.0,96761.0,0.4307439]
[1732930409943,0.09364854,96774.0,96761.0,0.4307439]
[1732930409944,0.00155069,96774.0,96773.0,0.051649]
[1732930410152,0.00155069,96774.0,96773.0,0.4307379]
[1732930410342,0.00155069,96774.0,96773.0,0.41642384]
[1732930410949,0.00162703,96774.0,96773.0,0.41642384]
[1732930411147,0.00107634,96774.0,96773.0,0.42542384]
[1732930411450,0.00107634,96774.0,96773.0,0.421449]
[1732930411704,7.634e-05,96774.0,96773.0,0.413449]
[1732930412047,0.00607634,96774.0,96773.0,0.4173538]
[1732930412245,0.00607634,96774.0,96773.0,0.41735447]
[1732930412644,0.1288984,96774.0,96773.0,0.41735447]
[1732930412849,0.1228984,96774.0,96773.0,0.41835447]
[1732930413257,7.634e-05,96774.0,96773.0,0.41835447]
[1732930413456,7.634e-05,96774.0,96773.0,0.55155552]
[1732930413647,0.09222108,96774.0,96773.0,0.55155552]
[1732930414048,7.634e-05,96774.0,96773.0,0.55155552]
[1732930414249,7.634e-05,96774.0,96773.0,0.55161892]
[1732930414453,7.634e-05,96774.0,96773.0,0.57248419]
[1732930414864,0.05023353,96792.0,96773.0,0.57248419]
[1732930414865,0.09214474,96780.0,96779.0,0.051645]
[1732930415053,0.09214474,96781.0,96780.0,0.082345]
[1732930415247,0.09214474,96783.0,96780.0,0.09266704]
[1732930415445,0.09214474,96783.0,96782.0,0.051644]
[1732930415658,0.09214474,96783.0,96782.0,0.06196604]
[1732930416243,0.09214474,96783.0,96782.0,0.05561351]
[1732930416448,0.09214474,96785.0,96784.0,0.051643]
[1732930416753,0.09214474,96785.0,96784.0,0.05561251]
[1732930417055,0.12285397,96788.0,96787.0,0.051641]
[1732930417259,0.12285397,96788.0,96787.0,0.412441]
[1732930417456,0.12294563,96789.0,96788.0,0.051641]
[1732930417658,9.166e-05,96789.0,96788.0,0.05559686]
[1732930417849,9.166e-05,96789.0,96788.0,0.06192756]
[1732930418355,9.166e-05,96789.0,96788.0,0.05559686]
[1732930419246,0.00109166,96789.0,96788.0,0.05559686]
[1732930420753,0.00109166,96789.0,96788.0,0.051641]
[1732930420959,0.00109166,96789.0,96788.0,0.0555982]
[1732930421570,0.00109166,96789.0,96788.0,0.06804476]
[1732930422659,0.00109166,96789.0,96788.0,0.42884476]
[1732930422850,0.00109166,96789.0,96788.0,0.4163982]
[1732930423045,0.05273166,96789.0,96788.0,0.4163982]
[1732930423311,0.05273166,96789.0,96778.0,0.36132]
[1732930423312,0.00109166,96789.0,96778.0,0.36132]
[1732930423452,0.051645,96779.0,96778.0,0.412446]
[1732930424755,0.051645,96779.0,96778.0,0.051646]
[1732930424951,0.051645,96779.0,96778.0,0.004]
[1732930425153,0.051645,96779.0,96778.0,0.006]
[1732930425457,0.051645,96779.0,96778.0,0.057646]
[1732930426044,0.3608,96785.0,96778.0,0.057646]
[1732930426250,0.3608,96785.0,96784.0,0.051643]
[1732930426657,0.412442,96785.0,96784.0,0.051643]
[1732930427357,0.3608,96785.0,96784.0,0.052643]
[1732930427651,0.06383895,96787.0,96785.0,0.051642]
[1732930427652,0.09196192,96787.0,96785.0,0.051642]
[1732930427853,0.12653166,96789.0,96787.0,0.051641]
[1732930427854,0.09196192,96788.0,96787.0,0.051641]
[1732930428051,0.09196192,96788.0,96787.0,0.05559249]
[1732930428659,0.14360192,96788.0,96787.0,0.05559249]
[1732930429587,0.05164,96788.0,96787.0,0.05559249]
[1732930430863,0.05164,96788.0,96787.0,0.051641]
[1732930431063,0.05164,96788.0,96787.0,0.05557387]
[1732930432361,0.05164,96788.0,96787.0,0.051641]
[1732930432362,0.001,96788.0,96787.0,0.051641]
[1732930433063,0.05123704,96788.0,96787.0,0.051641]
[1732930433798,0.05423704,96788.0,96787.0,0.051641]
[1732930433956,0.05323704,96788.0,96787.0,0.051641]
[1732930435160,0.05123553,96788.0,96787.0,0.051641]
[1732930435465,0.23543124,96788.0,96787.0,0.051641]
[1732930435859,0.05223553,96788.0,96787.0,0.051641]
[1732930437458,0.14912519,96788.0,96787.0,0.051641]
[1732930437959,0.14812519,96788.0,96787.0,0.051641]
[1732930438261,0.14816951,96788.0,96787.0,0.051641]
[1732930438464,0.05023553,96788.0,96787.0,0.051641]
[1732930438673,9.166e-05,96789.0,96788.0,0.05164]
[1732930440069,0.14823344,96789.0,96788.0,0.05164]
[1732930440257,0.14823344,96789.0,96788.0,0.05559117]
[1732930440258,0.09800037,96789.0,96788.0,0.05559117]
[1732930440567,0.09800037,96789.0,96788.0,0.06190267]
[1732930440568,9.166e-05,96789.0,96788.0,0.06190267]
[1732930440757,0.21489499,96801.0,96788.0,0.018152]
[1732930440960,0.30771285,96818.0,96804.0,0.051632]
[1732930440961,0.15378944,96809.0,96804.0,0.051632]
[1732930441157,0.21489499,96826.0,96804.0,0.051632]
[1732930441158,0.15378944,96811.0,96810.0,0.051629]
[1732930441362,0.37277341,96816.0,96812.0,0.051626]
[1732930441561,0.051627,96813.0,96808.0,0.3608]
[1732930441762,0.051629,96810.0,96809.0,0.05799508]
[1732930441963,0.051629,96810.0,96809.0,0.06197308]
[1732930442173,0.051629,96810.0,96809.0,0.05560698]
[1732930442665,0.1746477,96810.0,96809.0,0.05560698]
[1732930442870,0.051629,96810.0,96809.0,0.05560698]
[1732930443176,0.052629,96810.0,96809.0,0.05559037]
[1732930443565,0.053629,96810.0,96809.0,0.05559037]
[1732930444274,0.053629,96810.0,96809.0,0.051629]
[1732930444570,0.1765431,96810.0,96809.0,0.051629]
[1732930445172,0.17653067,96810.0,96809.0,0.051629]
[1732930445669,0.17653067,96810.0,96809.0,0.05562524]
[1732930446266,0.053629,96810.0,96809.0,0.05562524]
[1732930446476,0.053629,96810.0,96809.0,0.051629]
[1732930448468,0.002,96810.0,96809.0,0.051629]
[1732930455570,0.002,96810.0,96809.0,0.0623607]
[1732930456272,0.002,96810.0,96809.0,0.07061803]
[1732930456468,0.002,96810.0,96809.0,0.10161803]
[1732930457586,0.002,96810.0,96809.0,0.0933607]
[1732930459575,0.002,96810.0,96809.0,0.051629]
[1732930459772,0.002,96810.0,96809.0,0.0557548]
[1732930460184,0.002,96810.0,96809.0,0.06235746]
[1732930460572,0.002,96810.0,96809.0,0.06235684]
[1732930460877,0.002,96810.0,96809.0,0.0557548]
[1732930462078,0.002,96810.0,96809.0,0.0623836]
[1732930462981,0.002,96810.0,96809.0,0.05824428]
[1732930463276,0.002,96810.0,96809.0,0.06237797]
[1732930463476,0.051632,96803.0,96798.0,0.247181]
[1732930463677,0.177992,96803.0,96798.0,0.247181]
[1732930464480,0.051638,96793.0,96792.0,0.051638]
[1732930464671,0.412435,96798.0,96797.0,0.051635]
[1732930465589,0.49823598,96798.0,96797.0,0.051635]
[1732930465974,0.49823598,96798.0,96782.0,0.538804]
[1732930465975,0.051636,96797.0,96782.0,0.3608]
[1732930466321,0.45933232,96798.0,96776.0,0.051647]
[1732930466322,0.18436744,96787.0,96776.0,0.051647]
[1732930466472,0.18436744,96782.0,96773.0,0.36092788]
[1732930466793,0.3608,96789.0,96777.0,0.051646]
[1732930466794,0.15362303,96778.0,96777.0,0.051646]
[1732930466990,0.051641,96787.0,96779.0,0.051645]
[1732930466991,0.15362303,96780.0,96779.0,0.051645]
[1732930467518,0.15361924,96781.0,96779.0,0.051645]
[1732930467678,0.10361924,96780.0,96779.0,0.051645]
[1732930467879,0.18436744,96785.0,96784.0,0.051643]
[1732930468084,0.18436744,96788.0,96784.0,0.3608]
[1732930468281,0.18436744,96791.0,96785.0,0.0318]
[1732930468581,0.177992,96804.0,96785.0,0.0318]
[1732930468582,0.18436744,96793.0,96785.0,0.0318]
[1732930468786,0.18436744,96793.0,96792.0,0.051638]
[1732930468985,0.18436744,96794.0,96792.0,0.051638]
[1732930469174,0.18436744,96794.0,96793.0,0.0312]
[1732930469577,0.18436744,96797.0,96796.0,0.051636]
[1732930469777,0.051631,96807.0,96796.0,0.051636]
[1732930469778,0.18436744,96798.0,96796.0,0.051636]
[1732930470084,0.051631,96807.0,96793.0,0.392]
[1732930470085,0.18436744,96801.0,96800.0,0.051634]
[1732930470476,0.18436744,96803.0,96800.0,0.051634]
[1732930470784,0.18436744,96803.0,96793.0,0.392]
[1732930470785,0.18436744,96803.0,96802.0,0.051633]
[1732930471086,0.18436744,96804.0,96802.0,0.051633]
[1732930471277,0.00155022,96809.0,96803.0,0.0325]
[1732930471472,0.00155022,96809.0,96808.0,0.23710596]
[1732930472487,0.00155022,96809.0,96808.0,0.23710731]
[1732930472875,0.00010431,96812.0,96804.0,0.247181]
[1732930472876,0.00010431,96812.0,96811.0,0.051628]
[1732930473189,0.17798,96827.0,96825.0,0.05162]
[1732930473483,0.05162,96827.0,96825.0,0.05162]
[1732930474184,7.466e-05,96826.0,96825.0,0.05162]
[1732930475477,7.466e-05,96826.0,96825.0,0.05262]
[1732930475680,0.00207466,96826.0,96825.0,0.24219552]
[1732930476181,0.00207466,96826.0,96825.0,0.0567384]
[1732930476384,0.00707466,96826.0,96825.0,0.27287155]
[1732930477087,0.00207466,96826.0,96825.0,0.27287155]
[1732930477281,0.00607466,96826.0,96825.0,0.0875384]
[1732930478478,0.00607466,96826.0,96825.0,0.0865384]
[1732930478889,0.00607466,96826.0,96825.0,0.09310148]
[1732930479588,0.00607466,96826.0,96825.0,0.0865384]
[1732930481188,0.00607466,96826.0,96825.0,0.09310378]
[1732930481399,0.00607466,96826.0,96825.0,0.08242]
[1732930481687,0.00607466,96826.0,96825.0,0.08652172]
[1732930482098,0.12284647,96841.0,96825.0,0.39570172]
[1732930482295,0.3608,96849.0,96825.0,0.39570172]
[1732930482296,0.12284647,96852.0,96841.0,0.051612]
[1732930482487,0.12284647,96853.0,96847.0,0.412409]
[1732930482794,0.051605,96854.0,96847.0,0.412409]
[1732930483178,0.00165194,96848.0,96847.0,0.412409]
[1732930483896,0.00265194,96848.0,96847.0,0.421409]
[1732930484781,0.00265194,96848.0,96847.0,0.430409]
[1732930490496,0.00365194,96848.0,96847.0,0.421409]
[1732930491090,0.00465194,96848.0,96847.0,0.413409]
[1732930491798,0.00310266,96848.0,96847.0,0.413409]
[1732930492299,0.00210266,96848.0,96847.0,0.412409]
[1732930492486,0.00310266,96848.0,96847.0,0.413409]
[1732930492793,0.00110266,96848.0,96847.0,0.413409]
[1732930498071,0.05271166,96848.0,96847.0,0.001]
[1732930498310,0.051611,96843.0,96827.0,0.00154915]
[1732930498497,0.051619,96828.0,96827.0,0.00154915]
[1732930500807,0.20478013,96828.0,96827.0,0.00154915]
[1732930501105,0.051619,96828.0,96827.0,0.00154915]
[1732930501319,0.052619,96828.0,96827.0,0.00154915]
[1732930501705,0.085219,96828.0,96827.0,0.00154915]
[1732930502406,0.001,96828.0,96826.0,0.05162]
[1732930503600,0.051614,96838.0,96835.0,0.051616]
[1732930503601,0.15345861,96838.0,96835.0,0.051616]
[1732930503801,0.48712,96842.0,96827.0,0.05162]
[1732930503802,0.15345861,96840.0,96837.0,0.3608]
[1732930504005,0.15345861,96840.0,96839.0,0.051613]
[1732930504297,0.15345861,96845.0,96844.0,0.051611]
[1732930504612,0.051604,96856.0,96847.0,0.051609]
[1732930504613,0.51425861,96851.0,96847.0,0.051609]
[1732930504802,0.51493861,96851.0,96847.0,0.051609]
[1732930506301,0.36148,96851.0,96847.0,0.051609]
[1732930506506,0.3608,96851.0,96847.0,0.051609]
[1732930507008,0.51425861,96851.0,96847.0,0.052609]
[1732930507214,0.51501861,96851.0,96847.0,0.052609]
[1732930507505,0.51501861,96851.0,96847.0,0.05571437]
[1732930508111,0.15421861,96851.0,96847.0,0.41651437]
[1732930508310,0.15421861,96851.0,96847.0,0.42308469]
[1732930508311,0.15345861,96851.0,96847.0,0.42308469]
[1732930508503,0.12632,96860.0,96847.0,0.42308469]
[1732930508504,0.15345861,96860.0,96847.0,0.42308469]
[1732930508707,0.15345861,96862.0,96847.0,0.42308469]
[1732930508907,0.15345861,96862.0,96847.0,0.42305136]
[1732930509115,0.17792,96864.0,96847.0,0.42305136]
[1732930509307,0.12632,96864.0,96847.0,0.42305136]
[1732930509911,0.15345861,96867.0,96866.0,0.051599]
[1732930510121,0.00154926,96868.0,96867.0,0.051598]
[1732930510304,0.48712,96887.0,96883.0,0.051589]
[1732930510305,0.05159,96884.0,96883.0,0.051589]
[1732930511002,0.05168634,96884.0,96883.0,0.051589]
[1732930511716,0.17796634,96884.0,96883.0,0.060589]
[1732930512025,0.12637634,96884.0,96883.0,0.060589]
[1732930512621,9.634e-05,96884.0,96883.0,0.060589]
[1732930513214,9.634e-05,96884.0,96883.0,0.069589]
[1732930517116,9.634e-05,96884.0,96883.0,0.07364025]
[1732930520616,0.12259526,96884.0,96883.0,0.07364025]
[1732930521219,0.05168534,96884.0,96883.0,0.01405125]
[1732930521421,0.05168534,96884.0,96883.0,0.01]
[1732930521726,0.05168534,96884.0,96883.0,0.001]
[1732930521727,0.20495657,96884.0,96883.0,0.001]
[1732930521913,0.20495657,96884.0,96878.0,0.3608]
[1732930521914,0.051592,96879.0,96878.0,0.3608]
[1732930522818,0.051592,96879.0,96878.0,0.412393]
[1732930523214,0.051592,96879.0,96878.0,0.3608]
[1732930525512,0.051592,96879.0,96878.0,0.412393]
[1732930525825,0.051592,96879.0,96878.0,0.051593]
[1732930526419,0.05159,96882.0,96877.0,0.051593]
[1732930526717,0.05159,96882.0,96871.0,0.0308]
[1732930526718,0.051596,96872.0,96871.0,0.082396]
[1732930528015,0.051596,96872.0,96871.0,0.083396]
[1732930531118,0.051594,96877.0,96876.0,0.051593]
[1732930533223,0.18413225,96877.0,96876.0,0.05571768]
[1732930533427,0.3608,96883.0,96882.0,0.05159]
[1732930533722,0.62256037,96883.0,96882.0,0.05159]
[1732930533925,0.49628037,96883.0,96882.0,0.05159]
[1732930534201,9.634e-05,96884.0,96882.0,0.05159]
[1732930534427,9.634e-05,96884.0,96883.0,0.36490918]
[1732930534932,9.634e-05,96884.0,96883.0,0.37370699]
[1732930535318,9.634e-05,96884.0,96883.0,0.38074378]
[1732930535951,9.634e-05,96884.0,96883.0,0.37194597]
[1732930537234,0.18445483,96884.0,96883.0,0.36777662]
[1732930537542,0.18445483,96884.0,96883.0,0.38086231]
[1732930537737,0.08498093,96884.0,96883.0,0.3721361]
[1732930538442,0.08498093,96884.0,96883.0,0.38085234]
[1732930538746,9.634e-05,96884.0,96883.0,0.38085234]
[1732930539039,9.634e-05,96884.0,96883.0,0.3721361]
[1732930541945,9.634e-05,96884.0,96883.0,0.37222247]
[1732930542324,9.634e-05,96884.0,96883.0,0.55755562]
[1732930543029,0.1,96900.0,96883.0,0.37222247]
[1732930543030,0.12305102,96897.0,96883.0,0.37222247]
[1732930543333,0.12305102,96899.0,96897.0,0.051582]
[1732930543532,0.12305102,96899.0,96898.0,0.09915948]
[1732930543733,0.1,96900.0,96899.0,0.051581]
[1732930543930,0.1,96900.0,96899.0,0.05591993]
[1732930545841,0.1,96900.0,96899.0,0.06285418]
[1732930546133,0.1,96900.0,96899.0,0.07152379]
[1732930547227,0.151581,96900.0,96899.0,0.01994279]
[1732930547430,0.151581,96900.0,96899.0,0.01127318]
[1732930547629,0.183781,96900.0,96899.0,0.01127318]
[1732930548543,0.544581,96900.0,96899.0,0.01127318]
[1732930548728,0.544581,96900.0,96884.0,0.0314]
[1732930548729,0.051589,96885.0,96884.0,0.0314]
[1732930549040,0.051589,96885.0,96884.0,0.03836243]
[1732930549235,0.051589,96885.0,96884.0,0.08995143]
[1732930549632,0.051589,96885.0,96884.0,0.09861693]
[1732930549828,0.051589,96885.0,96884.0,0.08995143]
[1732930550026,0.051589,96885.0,96884.0,0.09861685]
[1732930550433,0.051589,96885.0,96884.0,0.09177727]
[1732930550634,0.051589,96885.0,96884.0,0.09880642]
[1732930551840,0.12295133,96888.0,96884.0,0.04721742]
[1732930552050,0.3608,96892.0,96885.0,0.01581742]
[1732930552241,0.3608,96892.0,96884.0,0.0314]
[1732930552242,0.3608,96892.0,96891.0,0.051586]
[1732930552540,0.22295133,96900.0,96899.0,0.051581]
[1732930552742,0.1,96900.0,96899.0,0.42819842]
[1732930553139,0.12295133,96912.0,96899.0,0.42819842]
[1732930553439,0.3608,96919.0,96899.0,0.42819842]
[1732930553440,0.12295133,96913.0,96904.0,0.051579]
[1732930553640,0.15369138,96908.0,96904.0,0.05860815]
[1732930554146,0.15369138,96909.0,96904.0,0.05860815]
[1732930554341,0.15369138,96909.0,96904.0,0.41940815]
[1732930554541,0.12302849,96908.0,96904.0,0.42808405]
[1732930554841,0.12302849,96909.0,96904.0,0.42808405]
[1732930555139,0.00010227,96913.0,96904.0,0.42808405]
[1732930555140,0.12302849,96911.0,96904.0,0.42808405]
[1732930555840,0.12302849,96910.0,96904.0,0.42808405]
[1732930556141,0.12302849,96911.0,96904.0,0.42808405]
[1732930557041,0.12302849,96912.0,96904.0,0.42808405]
[1732930557250,0.12302849,96912.0,96907.0,0.051577]
[1732930557435,0.051577,96908.0,96907.0,0.051577]
[1732930557731,0.051578,96905.0,96904.0,0.3608]
[1732930558239,0.051578,96905.0,96904.0,0.36765746]
[1732930558437,0.051578,96905.0,96904.0,0.3608]
[1732930560237,0.051578,96905.0,96904.0,0.412379]
[1732930560642,0.051583,96896.0,96895.0,0.3608]
[1732930560949,0.12298126,96896.0,96895.0,0.412383]
[1732930561256,0.051581,96899.0,96898.0,0.051582]
[1732930561257,0.20530471,96899.0,96898.0,0.051582]
[1732930561642,0.051581,96899.0,96898.0,0.051582]
[1732930563740,0.051581,96899.0,96895.0,0.3608]
[1732930563741,0.051583,96896.0,96895.0,0.412383]
[1732930564544,0.17461475,96900.0,96899.0,0.051581]
[1732930564845,0.051582,96900.0,96899.0,0.051581]
[1732930565449,0.17461475,96900.0,96899.0,0.051581]
[1732930566944,0.17461475,96900.0,96895.0,0.3608]
[1732930567144,0.17461475,96900.0,96887.0,0.3608]
[1732930567145,0.15372371,96900.0,96887.0,0.3608]
[1732930567363,0.051586,96892.0,96891.0,0.051585]
[1732930567546,0.17468861,96892.0,96891.0,0.051585]
[1732930567885,0.051586,96892.0,96891.0,0.051585]
[1732930568051,0.17468861,96892.0,96891.0,0.051585]
[1732930568355,0.051586,96892.0,96891.0,0.051585]
[1732930569456,0.051586,96892.0,96891.0,0.05578608]
[1732930569759,0.051586,96892.0,96891.0,0.05830812]
[1732930572168,0.051586,96892.0,96891.0,0.05930812]
[1732930572465,0.051586,96892.0,96891.0,0.07905919]
[1732930573857,0.051586,96892.0,96891.0,0.07805919]
[1732930574468,0.051586,96892.0,96891.0,0.06923277]
[1732930576456,0.051586,96892.0,96891.0,0.01092437]
[1732930576958,0.051586,96892.0,96891.0,0.01109093]
[1732930576959,0.14056543,96892.0,96891.0,0.01109093]
[1732930577160,0.051586,96892.0,96891.0,0.01109103]
[1732930577466,0.051586,96892.0,96891.0,0.06267703]
[1732930577656,0.051586,96892.0,96891.0,0.05595391]
[1732930582163,0.18464895,96893.0,96892.0,0.051585]
[1732930582362,0.18464895,96893.0,96892.0,0.05595291]
[1732930582758,0.01231625,96900.0,96893.0,0.051584]
[1732930582965,0.051581,96900.0,96899.0,0.051581]
[1732930583164,0.14061869,96900.0,96899.0,0.051581]
[1732930583364,0.14061869,96900.0,96899.0,0.06290199]
[1732930583762,0.17468144,96900.0,96899.0,0.06290199]
[1732930584271,0.17468936,96900.0,96899.0,0.06290199]
[1732930584866,0.17469404,96900.0,96899.0,0.06290199]
[1732930585173,0.051581,96900.0,96899.0,0.06290199]
[1732930586372,0.051581,96900.0,96899.0,0.07162665]
[1732930587364,0.15387555,96902.0,96900.0,0.051581]
[1732930587571,0.05158,96902.0,96901.0,0.07164176]
[1732930587868,0.05158,96902.0,96901.0,0.051579]
[1732930588064,0.05158,96902.0,96900.0,0.0632]
[1732930588065,0.12327347,96903.0,96900.0,0.0632]
[1732930588266,0.12327347,96903.0,96902.0,0.05158]
[1732930588659,0.12327347,96903.0,96902.0,0.06030387]
[1732930588861,0.12327347,96903.0,96902.0,0.06466395]
[1732930589065,0.051579,96903.0,96902.0,0.06466395]
[1732930589273,0.12329155,96903.0,96902.0,0.07164156]
[1732930589479,0.13540483,96905.0,96904.0,0.051579]
[1732930589667,0.12329155,96905.0,96904.0,0.07164056]
[1732930589864,0.051577,96908.0,96907.0,0.051577]
[1732930590201,0.0015483,96912.0,96911.0,0.051575]
[1732930590379,0.0015483,96912.0,96911.0,0.4322357]
[1732930590570,0.15387555,96927.0,96912.0,0.051574]
[1732930590878,0.3608,96933.0,96912.0,0.09308423]
[1732930590879,0.05157,96920.0,96912.0,0.09308423]
[1732930591570,0.05157,96920.0,96912.0,0.08643408]
[1732930591771,0.18465066,96917.0,96912.0,0.08643408]
[1732930592371,0.21489499,96930.0,96912.0,0.08643408]
[1732930592372,0.051572,96916.0,96912.0,0.08643408]
[1732930592577,0.18465066,96918.0,96912.0,0.08643408]
[1732930592872,0.051574,96914.0,96912.0,0.08643408]
[1732930593075,0.37327644,96924.0,96912.0,0.00436008]
[1732930593076,0.05167627,96913.0,96912.0,0.00436008]
[1732930593287,0.05167627,96913.0,96901.0,0.05158]
[1732930593288,0.36090227,96913.0,96901.0,0.05158]
[1732930593464,0.41247627,96913.0,96912.0,0.001]
[1732930593661,0.58892827,96913.0,96912.0,0.001]
[1732930593876,0.58889849,96913.0,96912.0,0.001]
[1732930594567,0.58889849,96913.0,96905.0,0.051578]
[1732930594568,0.051578,96906.0,96905.0,0.051578]
[1732930594766,0.13322956,96906.0,96905.0,0.051578]
[1732930595965,0.05158,96901.0,96900.0,0.08288]
[1732930596169,0.051585,96896.0,96895.0,0.051583]
[1732930596386,0.051585,96896.0,96895.0,0.05576514]
[1732930596387,0.23636264,96896.0,96895.0,0.05576514]
[1732930596567,0.23636264,96896.0,96887.0,0.0332]
[1732930596568,0.051585,96896.0,96887.0,0.0332]
[1732930596767,0.051586,96894.0,96893.0,0.051584]
[1732930597578,0.13343922,96894.0,96893.0,0.051584]
[1732930598570,0.13343922,96894.0,96893.0,0.05575344]
[1732930598765,0.051586,96894.0,96893.0,0.05575344]
[1732930598965,0.051586,96894.0,96893.0,0.00416944]
[1732930602070,0.051583,96895.0,96893.0,0.00416203]
[1732930602376,0.051583,96895.0,96894.0,0.00416199]
[1732930605831,0.13580822,96895.0,96894.0,0.00416199]
[1732930606675,0.13580822,96895.0,96894.0,0.01086575]
[1732930606676,0.23636296,96895.0,96894.0,0.01086575]
[1732930607076,0.23636296,96895.0,96894.0,0.00416199]
[1732930607578,0.23636724,96895.0,96894.0,0.01086571]
[1732930608771,0.051583,96895.0,96894.0,0.01086571]
[1732930609285,0.23636207,96895.0,96894.0,0.01086571]
[1732930609682,0.051583,96895.0,96894.0,0.01086571]
[1732930613285,0.3608,96896.0,96894.0,0.01086571]
[1732930613586,0.3608,96896.0,96895.0,0.06244871]
[1732930613779,0.3608,96896.0,96895.0,0.05574499]
[1732930615778,0.3608,96896.0,96895.0,0.05583795]
[1732930617887,0.051579,96904.0,96895.0,0.05583795]
[1732930618081,0.051579,96904.0,96903.0,0.051579]
[1732930618282,0.051579,96904.0,96903.0,0.05583395]
[1732930620181,0.051579,96904.0,96903.0,0.00425495]
[1732930620381,0.051579,96904.0,96903.0,0.00525495]
[1732930620794,0.051579,96904.0,96903.0,0.01205614]
[1732930621286,0.051579,96904.0,96903.0,0.001]
[1732930621486,0.051579,96904.0,96903.0,0.01205546]
[1732930622281,0.051579,96904.0,96903.0,0.00525154]
[1732930622481,0.20557086,96904.0,96903.0,0.01196329]
[1732930623081,0.051579,96904.0,96903.0,0.01196329]
[1732930624690,0.2058024,96904.0,96903.0,0.01207849]
[1732930624898,0.051579,96904.0,96903.0,0.01207849]
[1732930627202,0.01230195,96907.0,96903.0,0.01207849]
[1732930627499,0.54557907,96908.0,96904.0,0.05269917]
[1732930627500,0.051578,96905.0,96904.0,0.05269917]
[1732930627687,0.051578,96905.0,96904.0,0.04417849]
[1732930627969,0.051578,96905.0,96904.0,0.01107849]